[Event "XLII Barbera Open 2019"]
[Site "Barbera"]
[Date "2019.07.09"]
[Round "6.9"]
[White "Harikrishnan.A.Ra"]
[Black "Hernandez, Cristian Andres"]
[Result "1-0"]
[ECO "A05"]
[WhiteElo "2401"]
[BlackElo "2355"]
[Annotator "NA"]
[PlyCount "95"]
[EventDate "2019.07.04"]
[EventType "swiss"]
[EventCountry "ESP"]
[SourceTitle "playchess.com"]
[Source "ChessBase"]
[SourceQuality "1"]
[TimeControl "5400+30"]

1. Nf3 {[%emt 0:00:00]} Nf6 {[%emt 0:06:24]} 2. g3 {[%emt 0:00:05]} g6 {[%emt 0:00:30]} 3. Bg2 {[%emt 0:01:06]} Bg7 {[%emt 0:00:17]} 4. O-O {[%emt 0:00:06]} O-O {[%emt 0:00:03]} 5. d3 {[%emt 0:00:25]} d5 {[%emt 0:00:05]} 6. Nbd2 {[%emt 0:00:04]} d4 7. Nc4 {[%emt 0:05:40]} Nc6 {[%emt 0:01:45]} 8. Bd2 {[%emt 0:06:58]} Nd5 {[%emt 0:03:07]} 9. Qc1 {[%emt 0:01:01]} Re8 {[%emt 0:02:40]} 10. Bh6 {[%emt 0:00:41]} Bh8 {[%emt 0:00:54]} 11. Qd2 {[%emt 0:10:04]} e5 {[%emt 0:04:05]} 12. e4 {[%emt 0:02:45]} dxe3 {[%emt 0:00:45]} 13. fxe3 {[%emt 0:00:30]} Nb6 {[%emt 0:03:35]} 14. Nxb6 {[%emt 0:04:52]} axb6 {[%emt 0:00:04]} 15. Ng5 {[%emt 0:00:19]} f6 {[%emt 0:11:49]} 16. Ne4 {[%emt 0:06:39]} Bf5 {[%emt 0:02:20]} 17. Rf2 {[%emt 0:18:57]} Qe7 {[%emt 0:14:25]} 18. Raf1 {[%emt 0:05:20]} Nd8 {[%emt 0:01:21]} 19. Nxf6+ {[%emt 0:03:21]} Bxf6 {[%emt 0:01:29]} 20. e4 {[%emt 0:00:51]} Nf7 {[%emt 0:00:06]} 21. exf5 {[%emt 0:08:10]} Nxh6 {[%emt 0:00:17]} 22. Qxh6 {[%emt 0:00:05]} Bg5 {[%emt 0:00:22]} 23. Bd5+ {[%emt 0:02:01]} Kh8 {[%emt 0:00:05]} 24. Qh3 {[%emt 0:01:13]} Be3 {[%emt 0:04:20]} 25. fxg6 {[%emt 0:00:16]} Qg7 {[%emt 0:02:24]} 26. Kg2 {[%emt 0:04:16]} Bxf2 {[%emt 0:00:11]} 27. Rxf2 {[%emt 0:00:05]} Qxg6 {[%emt 0:00:34]} 28. Be4 {[%emt 0:03:38]} Qg7 {[%emt 0:00:34]} 29. Rf5 {[%emt 0:00:36]} Re7 {[%emt 0:04:01]} 30. Rh5 {[%emt 0:00:12]} Qg8 {[%emt 0:00:16]} 31. Qh4 {[%emt 0:02:00]} Rf7 {[%emt 0:00:07]} 32. Bd5 {[%emt 0:03:22]} Raf8 {[%emt 0:00:19]} 33. Kh3 {[%emt 0:03:21]} c6 {[%emt 0:05:43]} 34. Rg5 {[%emt 0:01:41]} cxd5 {[%emt 0:00:06]} 35. Rxg8+ {[%emt 0:00:02]} Rxg8 {[%emt 0:00:14]} 36. Qh5 {[%emt 0:00:20]} Re7 {[%emt 0:00:25]} 37. Qf3 {[%emt 0:00:29]} Rge8 {[%emt 0:08:53]} 38. Qxd5 {[%emt 0:00:06]} e4 {[%emt 0:00:03]} 39. dxe4 {[%emt 0:00:23]} Rxe4 {[%emt 0:00:05]} 40. Qxb7 {[%emt 0:00:07]} R8e6 {[%emt 0:00:03]} 41. Qf7 {[%emt 0:00:50]} h6 {[%emt 0:01:37]} 42. c3 {[%emt 0:00:06]} Re2 {[%emt 0:00:17]} 43. a4 {[%emt 0:00:14]} R2e4 {[%emt 0:01:20]} 44. b4 {[%emt 0:00:17]} R4e5 {[%emt 0:00:32]} 45. c4 {[%emt 0:00:02]} Rc6 {[%emt 0:00:34]} 46. c5 {[%emt 0:03:08]} bxc5 {[%emt 0:00:06]} 47. b5 {[%emt 0:00:11]} Rd6 {[%emt 0:00:22]} 48. Qf8+ {[%emt 0:00:03]} 1-0

[Event "XLII Barbera Open 2019"]
[Site "Barbera"]
[Date "2019.07.09"]
[Round "6.10"]
[White "Meessen, Rudolf"]
[Black "Vehi Bach, Victor Manuel"]
[Result "1/2-1/2"]
[ECO "B90"]
[WhiteElo "2269"]
[BlackElo "2339"]
[Annotator "NA"]
[PlyCount "33"]
[EventDate "2019.07.04"]
[EventType "swiss"]
[EventCountry "ESP"]
[SourceTitle "playchess.com"]
[Source "ChessBase"]
[SourceQuality "1"]
[TimeControl "5400+30"]

1. e4 c5 2. Nf3 d6 3. d4 cxd4 4. Nxd4 Nf6 5. Nc3 a6 6. Be3 e6 7. Be2 Be7 8. O-O O-O 9. a4 Nc6 10. f4 Qc7 11. Qe1 Nxd4 12. Bxd4 e5 13. fxe5 dxe5 14. Qg3 Bc5 15. Bxc5 Qxc5+ 16. Kh1 Kh8 17. Rad1 1/2-1/2

[Event "XLII Barbera Open 2019"]
[Site "Barbera"]
[Date "2019.07.10"]
[Round "7.1"]
[White "Rios, Cristhian Camilo"]
[Black "Peralta, Fernando"]
[Result "1/2-1/2"]
[ECO "E21"]
[WhiteElo "2520"]
[BlackElo "2562"]
[Annotator "ChessBase"]
[PlyCount "66"]
[EventDate "2019.07.04"]
[EventType "swiss"]
[EventCountry "ESP"]
[SourceTitle "playchess.com"]
[Source "ChessBase"]
[SourceQuality "1"]
[TimeControl "5400+30"]

1. d4 {[%emt 0:00:05]} Nf6 {[%emt 0:00:28]} 2. c4 {[%emt 0:00:17]} e6 {[%emt 0:00:05]} 3. Nc3 {[%emt 0:00:16]} Bb4 {[%emt 0:00:14]} 4. Nf3 {[%emt 0:01:18]} c5 {[%emt 0:00:30]} 5. g3 {[%emt 0:00:51]} Nc6 {[%emt 0:02:16]} 6. Bg2 {[%emt 0:02:05]} Ne4 {[%emt 0:00:18]} 7. Bd2 {[%emt 0:03:07]} Nxd2 {[%emt 0:00:17]} 8. Qxd2 {[%emt 0:00:10]} cxd4 {[%emt 0:00:08]} 9. Nxd4 {[%emt 0:00:14]} O-O {[%emt 0:01:08]} 10. Nc2 {[%emt 0:01:32]} Be7 {[%emt 0:01:27]} 11. O-O {[%emt 0:01:44]} a6 {[%emt 0:05:18]} 12. Rfd1 {[%emt 0:01:34]} Qc7 {[%emt 0:09:54]} 13. Ne4 {[%emt 0:06:25]} Ne5 {[%emt 0:02:46]} 14. b3 {[%emt 0:00:31]} d6 {[%emt 0:06:58]} 15. Ne3 {[%emt 0:10:02]} Rd8 {[%emt 0:05:46]} 16. Rac1 {[%emt 0:01:38]} Rb8 {[%emt 0:00:35]} 17. Qb2 {[%emt 0:16:27]} b6 {[%emt 0:02:52]} 18. h4 {[%emt 0:04:20]} Bb7 {[%emt 0:01:37]} 19. b4 {[%emt 0:07:48]} Rbc8 {[%emt 0:03:09]} 20. f4 {[%emt 0:07:22]} Bxe4 {[%emt 0:10:17]} 21. Bxe4 {[%emt 0:00:12]} Nd7 {[%emt 0:00:07]} 22. Kg2 {[%emt 0:02:04]} Qa7 {[%emt 0:03:01]} 23. Qa3 {[%emt 0:02:45]} Rc7 {[%emt 0:05:37]} 24. Qd3 {[%emt 0:03:12]} Nf6 {[%emt 0:02:34]} 25. Bf3 {[%emt 0:00:19]} Rdc8 {[%emt 0:02:00]} 26. Rc2 {[%emt 0:01:32]} b5 {[%emt 0:08:05]} 27. cxb5 {[%emt 0:01:12]} axb5 {[%emt 0:01:11]} 28. Rxc7 {[%emt 0:01:07]} Rxc7 {[%emt 0:00:27]} 29. Qxb5 {[%emt 0:01:10]} d5 {[%emt 0:02:16]} 30. f5 {[%emt 0:05:01]} Rb7 {[%emt 0:06:30]} 31. Qc6 {[%emt 0:01:06]} Rc7 {[%emt 0:03:23]} 32. Qb5 {[%emt 0:00:12]} Rb7 {[%emt 0:00:32]} 33. Qc6 {[%emt 0:00:08]} Rc7 1/2-1/2

[Event "XLII Barbera Open 2019"]
[Site "Barbera"]
[Date "2019.07.10"]
[Round "7.2"]
[White "Valenzuela Gomez, Fernando"]
[Black "Harutyunian, Tigran K."]
[Result "0-1"]
[ECO "D90"]
[WhiteElo "2394"]
[BlackElo "2539"]
[Annotator "ChessBase"]
[PlyCount "74"]
[EventDate "2019.07.04"]
[EventType "swiss"]
[EventCountry "ESP"]
[SourceTitle "playchess.com"]
[Source "ChessBase"]
[SourceQuality "1"]
[TimeControl "5400+30"]

1. d4 {[%emt 0:00:00]} Nf6 {[%emt 0:00:06]} 2. c4 {[%emt 0:03:45]} g6 {[%emt 0:00:22]} 3. Nc3 {[%emt 0:00:09]} d5 {[%emt 0:00:07]} 4. Nf3 {[%emt 0:00:40]} Bg7 {[%emt 0:00:18]} 5. h4 {[%emt 0:00:03]} c6 {[%emt 0:02:56]} 6. cxd5 {[%emt 0:00:05]} cxd5 {[%emt 0:00:05]} 7. Bf4 {[%emt 0:00:05]} Nc6 {[%emt 0:00:47]} 8. e3 {[%emt 0:00:09]} O-O {[%emt 0:01:30]} 9. Qb3 {[%emt 0:00:28]} Na5 {[%emt 0:04:54]} 10. Qb4 {[%emt 0:05:35]} Nc6 {[%emt 0:01:11]} 11. Qb3 {[%emt 0:00:10]} Re8 {[%emt 0:10:51]} 12. Ne5 {[%emt 0:19:37]} Na5 {[%emt 0:10:49]} 13. Qa3 {[%emt 0:05:50]} a6 {[%emt 0:01:37]} 14. b4 {[%emt 0:07:50]} Nc6 {[%emt 0:01:32]} 15. b5 {[%emt 0:03:36]} Nxe5 {[%emt 0:00:34]} 16. Bxe5 {[%emt 0:00:32]} Bf8 {[%emt 0:00:54]} 17. Qb3 {[%emt 0:10:44]} Ng4 {[%emt 0:03:14]} 18. Bg3 {[%emt 0:05:29]} e5 {[%emt 0:01:07]} 19. Be2 {[%emt 0:01:38]} exd4 {[%emt 0:01:13]} 20. exd4 {[%emt 0:00:54]} axb5 {[%emt 0:01:05]} 21. Qxb5 {[%emt 0:11:29]} Ra3 {[%emt 0:04:22]} 22. Rc1 {[%emt 0:02:07]} Bd7 {[%emt 0:04:23]} 23. Qb2 {[%emt 0:02:06]} Qa5 {[%emt 0:00:26]} 24. Kf1 {[%emt 0:04:45]} Bh6 {[%emt 0:07:34]} 25. Rc2 {[%emt 0:01:24]} Bf5 {[%emt 0:00:15]} 26. Bd6 {[%emt 0:10:00]} Bxc2 {[%emt 0:12:46]} 27. Qxa3 {[%emt 0:00:35]} Qb6 {[%emt 0:04:54]} 28. Qb4 {[%emt 0:02:00]} Qc6 {[%emt 0:00:06]} 29. Qc5 {[%emt 0:01:00]} Bd2 {[%emt 0:00:47]} 30. Rh3 {[%emt 0:01:02]} Qd7 {[%emt 0:02:42]} 31. Nxd5 Bd1 {[%emt 0:08:30]} 32. Ne7+ {[%emt 0:01:15]} Rxe7 {[%emt 0:00:07]} 33. Bxe7 {[%emt 0:00:08]} Qe6 {[%emt 0:00:07]} 34. Qc4 {[%emt 0:00:28]} Qf5 {[%emt 0:02:36]} 35. Bxg4 {[%emt 0:01:07]} Bxg4 {[%emt 0:00:13]} 36. Rb3 {[%emt 0:00:27]} Qe4 {[%emt 0:00:05]} 37. Re3 {[%emt 0:00:47]} Qb1+ {[%emt 0:00:06]} 0-1

[Event "XLII Barbera Open 2019"]
[Site "Barbera"]
[Date "2019.07.10"]
[Round "7.3"]
[White "Munoz, Miguel"]
[Black "Harikrishnan.A.Ra"]
[Result "1/2-1/2"]
[ECO "C77"]
[WhiteElo "2511"]
[BlackElo "2401"]
[Annotator "ChessBase"]
[PlyCount "37"]
[EventDate "2019.07.04"]
[EventType "swiss"]
[EventCountry "ESP"]
[SourceTitle "playchess.com"]
[Source "ChessBase"]
[SourceQuality "1"]
[TimeControl "5400+30"]

1. e4 {[%emt 0:19:10]} e5 {[%emt 0:00:00]} 2. Nf3 {[%emt 0:00:25]} Nc6 {[%emt 0:00:00]} 3. Bb5 {[%emt 0:00:12]} a6 {[%emt 0:00:00]} 4. Ba4 {[%emt 0:00:08]} Nf6 {[%emt 0:00:00]} 5. Bxc6 {[%emt 0:02:20]} dxc6 {[%emt 0:00:01]} 6. d3 {[%emt 0:00:39]} Bd6 {[%emt 0:00:05]} 7. Nbd2 {[%emt 0:00:56]} Be6 {[%emt 0:00:02]} 8. Nf1 {[%emt 0:00:51]} O-O {[%emt 0:03:45]} 9. Ng3 {[%emt 0:00:28]} Re8 {[%emt 0:05:15]} 10. O-O {[%emt 0:00:59]} Nd7 {[%emt 0:02:01]} 11. Be3 {[%emt 0:06:12]} Nf8 12. Ng5 {[%emt 0:08:44]} f6 {[%emt 0:01:21]} 13. Nxe6 {[%emt 0:00:46]} Nxe6 {[%emt 0:00:03]} 14. Qg4 {[%emt 0:00:23]} Bf8 {[%emt 0:07:43]} 15. Rad1 {[%emt 0:00:58]} Kh8 {[%emt 0:05:01]} 16. c3 {[%emt 0:07:19]} c5 17. f4 {[%emt 0:01:07]} exf4 {[%emt 0:00:58]} 18. Bxf4 {[%emt 0:00:05]} Qd7 19. Rd2 {[%emt 0:03:04]} 1/2-1/2

[Event "XLII Barbera Open 2019"]
[Site "Barbera"]
[Date "2019.07.10"]
[Round "7.4"]
[White "Berdayes Ason, Dylan Isidro"]
[Black "Moskalenko, Viktor"]
[Result "1/2-1/2"]
[ECO "B06"]
[WhiteElo "2461"]
[BlackElo "2500"]
[Annotator "ChessBase"]
[PlyCount "53"]
[EventDate "2019.07.04"]
[EventType "swiss"]
[EventCountry "ESP"]
[SourceTitle "playchess.com"]
[Source "ChessBase"]
[SourceQuality "1"]
[TimeControl "5400+30"]

1. e4 {[%emt 0:13:49]} g6 {[%emt 0:00:13]} 2. d4 {[%emt 0:00:10]} Bg7 {[%emt 0:00:09]} 3. Nf3 {[%emt 0:00:07]} d6 {[%emt 0:00:31]} 4. Bc4 {[%emt 0:00:02]} c6 {[%emt 0:02:28]} 5. h3 {[%emt 0:00:02]} d5 {[%emt 0:03:06]} 6. Bb3 {[%emt 0:00:14]} dxe4 {[%emt 0:11:09]} 7. Ng5 {[%emt 0:00:03]} Nh6 {[%emt 0:00:08]} 8. c3 {[%emt 0:00:04]} c5 {[%emt 0:07:22]} 9. d5 {[%emt 0:00:02]} Nf5 {[%emt 0:03:02]} 10. Nxe4 {[%emt 0:01:32]} Nd7 {[%emt 0:00:21]} 11. O-O {[%emt 0:01:42]} O-O {[%emt 0:00:21]} 12. Bf4 {[%emt 0:03:57]} b5 {[%emt 0:01:29]} 13. a4 {[%emt 0:05:05]} c4 {[%emt 0:05:59]} 14. Bc2 {[%emt 0:00:01]} Nb6 {[%emt 0:05:03]} 15. axb5 {[%emt 0:03:25]} Bb7 {[%emt 0:06:28]} 16. d6 {[%emt 0:17:42]} e5 {[%emt 0:05:51]} 17. Bc1 {[%emt 0:00:02]} Bd5 {[%emt 0:08:35]} 18. Na3 {[%emt 0:01:38]} Nxd6 {[%emt 0:10:21]} 19. Nxd6 {[%emt 0:01:37]} Qxd6 {[%emt 0:00:02]} 20. Be4 {[%emt 0:00:28]} Rfd8 {[%emt 0:16:25]} 21. Bxd5 {[%emt 0:00:02]} Qxd5 {[%emt 0:00:02]} 22. Qxd5 {[%emt 0:00:18]} Rxd5 {[%emt 0:00:03]} 23. Be3 {[%emt 0:00:12]} Rc8 {[%emt 0:00:32]} 24. Rfd1 {[%emt 0:03:04]} Rxd1+ {[%emt 0:00:12]} 25. Rxd1 {[%emt 0:00:01]} Bf8 {[%emt 0:00:01]} 26. Nc2 {[%emt 0:07:16]} Bc5 {[%emt 0:01:28]} 27. Ra1 1/2-1/2

[Event "XLII Barbera Open 2019"]
[Site "Barbera"]
[Date "2019.07.10"]
[Round "7.5"]
[White "Perez Mitjans, Orelvis"]
[Black "Oliva Castaneda, Kevel"]
[Result "1/2-1/2"]
[ECO "C84"]
[WhiteElo "2416"]
[BlackElo "2467"]
[Annotator "ChessBase"]
[PlyCount "24"]
[EventDate "2019.07.04"]
[EventType "swiss"]
[EventCountry "ESP"]
[SourceTitle "playchess.com"]
[Source "ChessBase"]
[SourceQuality "1"]
[TimeControl "5400+30"]

1. e4 {[%emt 0:17:59]} e5 {[%emt 0:00:00]} 2. Nf3 {[%emt 0:00:26]} Nc6 {[%emt 0:00:00]} 3. Bb5 {[%emt 0:00:08]} a6 {[%emt 0:00:00]} 4. Ba4 {[%emt 0:00:04]} Nf6 {[%emt 0:00:00]} 5. O-O {[%emt 0:00:12]} Be7 {[%emt 0:00:00]} 6. d3 {[%emt 0:00:52]} b5 {[%emt 0:00:04]} 7. Bb3 {[%emt 0:00:04]} d6 {[%emt 0:00:03]} 8. a3 {[%emt 0:00:10]} Na5 {[%emt 0:00:06]} 9. Ba2 {[%emt 0:00:05]} c5 {[%emt 0:00:07]} 10. Nc3 {[%emt 0:00:19]} Be6 {[%emt 0:00:17]} 11. Ne2 {[%emt 0:01:57]} Bxa2 {[%emt 0:02:36]} 12. Rxa2 {[%emt 0:00:02]} O-O {[%emt 0:01:02]} 1/2-1/2

[Event "XLII Barbera Open 2019"]
[Site "Barbera"]
[Date "2019.07.10"]
[Round "7.6"]
[White "Sturt, Raven"]
[Black "Sreeshwan Maralakshikari"]
[Result "1-0"]
[ECO "D14"]
[WhiteElo "2429"]
[BlackElo "2461"]
[Annotator "ChessBase"]
[PlyCount "69"]
[EventDate "2019.07.04"]
[EventType "swiss"]
[EventCountry "ESP"]
[SourceTitle "playchess.com"]
[Source "ChessBase"]
[SourceQuality "1"]
[TimeControl "5400+30"]

1. d4 {[%emt 0:00:00]} d5 {[%emt 0:00:09]} 2. c4 {[%emt 0:00:00]} c6 {[%emt 0:00:02]} 3. cxd5 {[%emt 0:00:00]} cxd5 {[%emt 0:00:04]} 4. Nc3 {[%emt 0:00:00]} Nf6 {[%emt 0:00:07]} 5. Nf3 {[%emt 0:00:00]} Nc6 {[%emt 0:00:04]} 6. Bf4 {[%emt 0:00:00]} Bf5 {[%emt 0:03:14]} 7. e3 {[%emt 0:00:00]} e6 {[%emt 0:00:03]} 8. Qb3 {[%emt 0:00:01]} Bb4 {[%emt 0:00:04]} 9. Ne5 {[%emt 0:00:05]} O-O {[%emt 0:24:32]} 10. Nxc6 {[%emt 0:06:30]} Bxc3+ {[%emt 0:00:04]} 11. bxc3 {[%emt 0:00:13]} bxc6 {[%emt 0:00:06]} 12. Be2 {[%emt 0:01:38]} Qc8 {[%emt 0:20:48]} 13. Qa3 Rd8 {[%emt 0:16:04]} 14. f3 {[%emt 0:11:13]} a5 {[%emt 0:02:07]} 15. O-O {[%emt 0:01:22]} c5 {[%emt 0:01:02]} 16. dxc5 {[%emt 0:03:53]} Qc6 {[%emt 0:00:28]} 17. c4 {[%emt 0:06:08]} Rdc8 {[%emt 0:15:30]} 18. Bd6 {[%emt 0:00:22]} Ne8 {[%emt 0:02:18]} 19. Rac1 Nxd6 {[%emt 0:07:48]} 20. cxd6 {[%emt 0:04:38]} dxc4 21. e4 {[%emt 0:08:37]} Bg6 {[%emt 0:00:43]} 22. Rxc4 {[%emt 0:01:18]} Qb6+ {[%emt 0:00:23]} 23. Kh1 {[%emt 0:00:19]} Rxc4 {[%emt 0:00:27]} 24. Bxc4 {[%emt 0:00:03]} Qd4 {[%emt 0:01:20]} 25. Bb3 {[%emt 0:01:43]} Kf8 26. Rd1 {[%emt 0:02:17]} Qb4 {[%emt 0:02:00]} 27. Qc1 Rd8 {[%emt 0:03:19]} 28. Qc7 {[%emt 0:00:12]} Qb8 {[%emt 0:00:28]} 29. Qe7+ {[%emt 0:00:04]} Kg8 {[%emt 0:00:18]} 30. d7 {[%emt 0:00:09]} h6 31. Qc5 {[%emt 0:05:11]} Qa8 {[%emt 0:01:21]} 32. Ba4 {[%emt 0:00:26]} Kh7 {[%emt 0:00:21]} 33. Qc7 {[%emt 0:00:06]} f5 {[%emt 0:00:22]} 34. Bc6 {[%emt 0:00:11]} Qc8 {[%emt 0:00:37]} 35. Qxc8 1-0

[Event "XLII Barbera Open 2019"]
[Site "Barbera"]
[Date "2019.07.10"]
[Round "7.7"]
[White "Vehi Bach, Victor Manuel"]
[Black "Morales, Jhon Alexander"]
[Result "1-0"]
[ECO "B90"]
[WhiteElo "2339"]
[BlackElo "2422"]
[Annotator "NA"]
[PlyCount "69"]
[EventDate "2019.07.04"]
[EventType "swiss"]
[EventCountry "ESP"]
[SourceTitle "playchess.com"]
[Source "ChessBase"]
[SourceQuality "1"]
[TimeControl "5400+30"]

1. e4 {[%emt 0:00:00]} c5 {[%emt 0:00:57]} 2. Nf3 {[%emt 0:00:00]} d6 {[%emt 0:00:07]} 3. d4 {[%emt 0:00:00]} cxd4 {[%emt 0:00:04]} 4. Nxd4 {[%emt 0:00:00]} Nf6 {[%emt 0:00:23]} 5. Nc3 {[%emt 0:00:04]} a6 {[%emt 0:00:05]} 6. Be3 {[%emt 0:00:10]} e5 {[%emt 0:04:47]} 7. Nb3 {[%emt 0:00:13]} Be6 {[%emt 0:00:30]} 8. h3 {[%emt 0:00:41]} Be7 {[%emt 0:00:43]} 9. f4 {[%emt 0:00:17]} exf4 {[%emt 0:00:53]} 10. Bxf4 {[%emt 0:00:09]} Nc6 {[%emt 0:00:04]} 11. Qe2 {[%emt 0:00:14]} Nd7 {[%emt 0:00:23]} 12. O-O-O {[%emt 0:00:40]} Nce5 {[%emt 0:00:24]} 13. Kb1 {[%emt 0:01:14]} Rc8 {[%emt 0:00:31]} 14. Nd5 {[%emt 0:00:20]} Bxd5 {[%emt 0:00:27]} 15. Rxd5 {[%emt 0:03:09]} O-O {[%emt 0:00:16]} 16. g4 {[%emt 0:01:42]} Re8 {[%emt 0:10:41]} 17. Rd1 {[%emt 0:06:10]} Bf8 {[%emt 0:03:23]} 18. h4 {[%emt 0:03:03]} Nc4 {[%emt 0:00:00]} 19. g5 {[%emt 0:13:50]} Ndb6 {[%emt 0:18:18]} 20. Qf3 {[%emt 0:18:20]} Ne5 {[%emt 0:10:08]} 21. Qg2 {[%emt 0:01:54]} g6 {[%emt 0:01:14]} 22. Be3 {[%emt 0:09:47]} Bg7 {[%emt 0:06:09]} 23. Bd4 {[%emt 0:02:59]} Nbd7 {[%emt 0:00:35]} 24. h5 {[%emt 0:00:37]} Nf8 {[%emt 0:00:54]} 25. hxg6 {[%emt 0:03:16]} hxg6 {[%emt 0:00:06]} 26. Rh4 {[%emt 0:03:34]} Qc7 {[%emt 0:04:03]} 27. Bd3 {[%emt 0:04:28]} Ne6 {[%emt 0:02:06]} 28. Be3 {[%emt 0:09:55]} a5 {[%emt 0:04:08]} 29. Bb5 {[%emt 0:03:09]} Red8 {[%emt 0:04:55]} 30. Rdh1 {[%emt 0:00:33]} Kf8 {[%emt 0:00:28]} 31. Rh7 {[%emt 0:05:21]} a4 {[%emt 0:01:12]} 32. Nd4 {[%emt 0:01:06]} Nxd4 {[%emt 0:01:58]} 33. Bxd4 {[%emt 0:00:20]} Qe7 {[%emt 0:07:46]} 34. Qg3 {[%emt 0:05:16]} Qc7 {[%emt 0:03:21]} 35. Qh2 {[%emt 0:00:42]} 1-0

[Event "XLII Barbera Open 2019"]
[Site "Barbera"]
[Date "2019.07.10"]
[Round "7.8"]
[White "Garcia Ramos, Daniel"]
[Black "Bobadilla Viera, Jorge Samuel"]
[Result "0-1"]
[ECO "B90"]
[WhiteElo "2336"]
[BlackElo "2381"]
[Annotator "NA"]
[PlyCount "86"]
[EventDate "2019.07.04"]
[EventType "swiss"]
[EventCountry "ESP"]
[SourceTitle "playchess.com"]
[Source "ChessBase"]
[SourceQuality "1"]
[TimeControl "5400+30"]

1. e4 {[%emt 0:00:00]} c5 {[%emt 0:02:26]} 2. Nf3 {[%emt 0:00:05]} d6 {[%emt 0:00:09]} 3. d4 {[%emt 0:00:04]} cxd4 {[%emt 0:00:03]} 4. Nxd4 {[%emt 0:00:05]} Nf6 {[%emt 0:00:03]} 5. Nc3 {[%emt 0:00:06]} a6 {[%emt 0:00:02]} 6. f3 {[%emt 0:00:07]} e5 {[%emt 0:00:04]} 7. Nb3 {[%emt 0:00:04]} Be6 {[%emt 0:00:05]} 8. Be3 {[%emt 0:00:07]} h5 {[%emt 0:00:50]} 9. Qd2 {[%emt 0:03:35]} Nbd7 {[%emt 0:00:10]} 10. O-O-O {[%emt 0:04:38]} Rc8 {[%emt 0:01:10]} 11. Kb1 {[%emt 0:00:10]} Be7 {[%emt 0:08:00]} 12. Bg5 {[%emt 0:03:37]} b5 {[%emt 0:00:38]} 13. a3 {[%emt 0:00:30]} O-O 14. h4 {[%emt 0:02:45]} Re8 {[%emt 0:05:03]} 15. Be2 {[%emt 0:15:20]} Qb6 {[%emt 0:21:15]} 16. Be3 {[%emt 0:20:00]} Qb8 {[%emt 0:12:01]} 17. Nd5 {[%emt 0:18:56]} Bxd5 {[%emt 0:04:10]} 18. exd5 {[%emt 0:00:01]} Nb6 {[%emt 0:00:25]} 19. Bxb6 {[%emt 0:06:54]} Qxb6 {[%emt 0:00:01]} 20. Bd3 {[%emt 0:00:42]} Nxd5 {[%emt 0:03:49]} 21. Bf5 {[%emt 0:04:51]} Ne3 {[%emt 0:00:21]} 22. Bxc8 {[%emt 0:01:47]} Nxd1 {[%emt 0:01:37]} 23. Bxa6 {[%emt 0:02:53]} Nxb2 {[%emt 0:01:23]} 24. Bxb5 {[%emt 0:01:58]} Qxb5 {[%emt 0:00:15]} 25. Kxb2 {[%emt 0:00:05]} d5 {[%emt 0:00:48]} 26. Rd1 {[%emt 0:01:29]} e4 {[%emt 0:03:43]} 27. Qxd5 {[%emt 0:05:36]} Bf6+ {[%emt 0:00:15]} 28. c3 {[%emt 0:03:01]} Qxd5 {[%emt 0:00:19]} 29. Rxd5 {[%emt 0:00:01]} e3 {[%emt 0:00:06]} 30. Nc1 {[%emt 0:00:19]} e2 {[%emt 0:00:33]} 31. Nxe2 {[%emt 0:00:01]} Rxe2+ {[%emt 0:00:03]} 32. Kb3 {[%emt 0:00:08]} g6 {[%emt 0:03:40]} 33. a4 {[%emt 0:00:18]} Rxg2 {[%emt 0:00:32]} 34. a5 {[%emt 0:00:17]} Rg1 {[%emt 0:00:53]} 35. c4 {[%emt 0:01:17]} Ra1 {[%emt 0:01:05]} 36. Kb4 {[%emt 0:00:29]} Bxh4 {[%emt 0:00:10]} 37. Kb5 {[%emt 0:00:17]} Be1 {[%emt 0:01:22]} 38. a6 {[%emt 0:00:32]} h4 {[%emt 0:00:55]} 39. c5 {[%emt 0:04:51]} h3 {[%emt 0:00:12]} 40. c6 {[%emt 0:00:03]} Ra5+ {[%emt 0:01:02]} 41. Kc4 {[%emt 0:00:11]} Rxa6 {[%emt 0:00:10]} 42. c7 {[%emt 0:00:07]} Rc6+ {[%emt 0:00:04]} 43. Rc5 {[%emt 0:00:04]} Rxc7 {[%emt 0:00:08]} 0-1

[Event "XLII Barbera Open 2019"]
[Site "Barbera"]
[Date "2019.07.10"]
[Round "7.10"]
[White "Bhavesh Mahajan"]
[Black "Leon Valdes, Jony Wilson"]
[Result "0-1"]
[ECO "C02"]
[WhiteElo "2051"]
[BlackElo "2364"]
[Annotator "NA"]
[PlyCount "110"]
[EventDate "2019.07.04"]
[EventType "swiss"]
[EventCountry "ESP"]
[SourceTitle "playchess.com"]
[Source "ChessBase"]
[SourceQuality "1"]
[TimeControl "5400+30"]

1. e4 e6 2. d4 d5 3. e5 c5 4. c3 Nc6 5. Nf3 Nge7 6. Na3 Nf5 7. Nc2 Be7 8. Bd3 cxd4 9. Bxf5 exf5 10. Ncxd4 Be6 11. O-O h6 12. Re1 g5 13. Nb5 a6 14. Nd6+ Bxd6 15. exd6 Qxd6 16. Be3 f4 17. Bd4 O-O 18. Ne5 Nxd4 19. Qxd4 Rad8 20. Re2 Bf5 21. Rae1 Rfe8 22. f3 Re6 23. Nd3 Rde8 24. Kf1 Qc6 25. Rxe6 Rxe6 26. Nb4 Qc4+ 27. Kf2 Qxd4+ 28. cxd4 Rb6 29. a3 a5 30. Nxd5 Rxb2+ 31. Kg1 Kf8 32. h4 Rb1 33. Rxb1 Bxb1 34. hxg5 hxg5 35. Kf2 Ke8 36. Ke2 Ba2 37. Nb6 Kd8 38. Kd3 Kc7 39. Nc4 b5 40. Nd2 f5 41. Kc3 Kd6 42. Kd3 Kd5 43. Kc3 Bc4 44. a4 b4+ 45. Kb2 Kxd4 46. Kc2 Bd5 47. Nf1 g4 48. Nd2 g3 49. Nf1 Bxf3 50. gxf3 g2 51. Nd2 g1=Q 52. Nb3+ Kd5 53. Nxa5 Qc5+ 54. Kb2 Qxa5 55. Kb3 Kd4 0-1